[Event "GrandPrix_29.05"]
[Site "Chess.com"]
[Date "2020.05.29"]
[Round "3"]
[White "EvgenyPigusov"]
[Black "MasterSonnevanck2"]
[Result "1/2-1/2"]
[WhiteElo "2163"]
[BlackElo "2052"]
[TimeControl "600+2"]
[EndTime "10:24:16 PDT"]
[Termination "Game drawn by repetition"]

1. Nf3 {[%clk 0:10:01.9]} 1... Nf6 {[%clk 0:10:00]} 2. c4 {[%clk 0:10:02.2]}
2... e6 {[%clk 0:10:00.3]} 3. g3 {[%clk 0:10:03]} 3... d5 {[%clk 0:10:00.3]} 4.
Bg2 {[%clk 0:10:03.6]} 4... Be7 {[%clk 0:10:01.1]} 5. O-O {[%clk 0:10:04]} 5...
O-O {[%clk 0:10:01.9]} 6. b3 {[%clk 0:10:03.4]} 6... c5 {[%clk 0:10:00.7]} 7. e3
{[%clk 0:09:59.3]} 7... Nc6 {[%clk 0:09:56.1]} 8. Bb2 {[%clk 0:09:58.4]} 8... b6
{[%clk 0:09:55.7]} 9. Nc3 {[%clk 0:09:56.3]} 9... Ba6 {[%clk 0:09:54.9]} 10. Nb5
{[%clk 0:09:24.2]} 10... Bb7 {[%clk 0:09:43.8]} 11. Rc1 {[%clk 0:08:56]} 11...
Nb4 {[%clk 0:09:20.3]} 12. a3 {[%clk 0:06:52.7]} 12... Nd3 {[%clk 0:09:16.6]}
13. Rb1 {[%clk 0:06:33.8]} 13... Nxb2 {[%clk 0:09:15.8]} 14. Rxb2 {[%clk
0:06:34.7]} 14... a6 {[%clk 0:08:56.9]} 15. Nc3 {[%clk 0:06:34.6]} 15... Qc7
{[%clk 0:07:58.1]} 16. cxd5 {[%clk 0:06:03.2]} 16... Nxd5 {[%clk 0:07:53.6]} 17.
Nxd5 {[%clk 0:05:53.2]} 17... Bxd5 {[%clk 0:07:51.8]} 18. Ne1 {[%clk 0:05:49.2]}
18... Rfd8 {[%clk 0:07:16.5]} 19. Qe2 {[%clk 0:05:29.9]} 19... b5 {[%clk
0:07:08.3]} 20. Bxd5 {[%clk 0:05:24.9]} 20... exd5 {[%clk 0:06:38.6]} 21. d3
{[%clk 0:05:19.2]} 21... c4 {[%clk 0:06:14.5]} 22. dxc4 {[%clk 0:04:56.4]} 22...
dxc4 {[%clk 0:06:13.3]} 23. bxc4 {[%clk 0:04:55.4]} 23... bxc4 {[%clk
0:05:53.5]} 24. Ra2 {[%clk 0:04:29.4]} 24... c3 {[%clk 0:05:37.2]} 25. Nf3
{[%clk 0:04:27.2]} 25... Rac8 {[%clk 0:04:59.1]} 26. Rc1 {[%clk 0:04:06.8]}
26... Qa5 {[%clk 0:04:55.7]} 27. Nd4 {[%clk 0:03:57.9]} 27... Bf6 {[%clk
0:04:47.1]} 28. Rac2 {[%clk 0:03:11.7]} 28... Qxa3 {[%clk 0:04:24.8]} 29. Qd3
{[%clk 0:03:11.6]} 29... g6 {[%clk 0:03:58.5]} 30. Rxc3 {[%clk 0:03:10.7]} 30...
Qxc1+ {[%clk 0:03:32.9]} 31. Rxc1 {[%clk 0:03:11.4]} 31... Rxc1+ {[%clk
0:03:32.8]} 32. Kg2 {[%clk 0:03:11.9]} 32... Bxd4 {[%clk 0:03:33.1]} 33. exd4
{[%clk 0:03:09.5]} 33... Rc6 {[%clk 0:03:33.6]} 34. d5 {[%clk 0:02:34.2]} 34...
Rcd6 {[%clk 0:03:30.9]} 35. Qa3 {[%clk 0:02:34.8]} 35... h5 {[%clk 0:03:22.7]}
36. h3 {[%clk 0:02:30.3]} 36... R8d7 {[%clk 0:03:08.7]} 37. g4 {[%clk 0:02:24]}
37... hxg4 {[%clk 0:03:08.1]} 38. hxg4 {[%clk 0:02:24.7]} 38... Rd8 {[%clk
0:02:50.2]} 39. Qa5 {[%clk 0:02:21.9]} 39... Rxd5 {[%clk 0:02:27.9]} 40. Qxa6
{[%clk 0:02:22]} 40... R8d6 {[%clk 0:02:27.4]} 41. Qc8+ {[%clk 0:02:20.8]} 41...
Kg7 {[%clk 0:02:27.8]} 42. Qc3+ {[%clk 0:02:20.8]} 42... Kg8 {[%clk 0:02:22.3]}
43. Qc8+ {[%clk 0:02:20.8]} 43... Rd8 {[%clk 0:02:23.3]} 44. Qc7 {[%clk
0:02:19.4]} 44... Rd4 {[%clk 0:02:21.9]} 45. Kg3 {[%clk 0:02:15.5]} 45... R8d7
{[%clk 0:02:20]} 46. Qc8+ {[%clk 0:02:15.1]} 46... Kg7 {[%clk 0:02:21]} 47. Qc5
{[%clk 0:02:14.4]} 47... R4d5 {[%clk 0:02:16.4]} 48. Qc3+ {[%clk 0:02:15]} 48...
Kg8 {[%clk 0:02:16.8]} 49. f3 {[%clk 0:02:16]} 49... R7d6 {[%clk 0:02:09.6]} 50.
Qc8+ {[%clk 0:02:14.4]} 50... Kg7 {[%clk 0:02:08.8]} 51. Qc3+ {[%clk 0:02:12.5]}
51... Kg8 {[%clk 0:02:07.2]} 52. Qc8+ {[%clk 0:02:12.7]} 52... Kg7 {[%clk
0:02:08.2]} 53. Qc3+ {[%clk 0:02:13.4]} 53... Kg8 {[%clk 0:02:09.2]} 1/2-1/2

[Event "GrandPrix_29.05"]
[Site "Chess.com"]
[Date "2020.05.29"]
[Round "3"]
[White "Luq27"]
[Black "VojtechPlat"]
[Result "1-0"]
[WhiteElo "2389"]
[BlackElo "2344"]
[TimeControl "600+2"]
[EndTime "10:24:18 PDT"]
[Termination "Luq27 won by resignation"]

1. Nf3 {[%clk 0:10:01.9]} 1... d6 {[%clk 0:09:58.5]} 2. d4 {[%clk 0:10:01.1]}
2... f5 {[%clk 0:09:56.2]} 3. g3 {[%clk 0:09:59.4]} 3... Nf6 {[%clk 0:09:56.5]}
4. Bg2 {[%clk 0:10:00.6]} 4... g6 {[%clk 0:09:55.8]} 5. O-O {[%clk 0:10:01.6]}
5... Bg7 {[%clk 0:09:56.3]} 6. c4 {[%clk 0:10:02.7]} 6... O-O {[%clk 0:09:56.1]}
7. Nc3 {[%clk 0:10:02.3]} 7... Qe8 {[%clk 0:09:56.6]} 8. b3 {[%clk 0:09:59.2]}
8... c6 {[%clk 0:09:46.9]} 9. Ba3 {[%clk 0:09:47.9]} 9... Ne4 {[%clk 0:09:43]}
10. Rc1 {[%clk 0:08:19]} 10... h6 {[%clk 0:09:42]} 11. Qd3 {[%clk 0:07:18.2]}
11... Nxc3 {[%clk 0:09:35.8]} 12. Rxc3 {[%clk 0:07:19.1]} 12... Nd7 {[%clk
0:09:35.4]} 13. e4 {[%clk 0:07:13.6]} 13... Nf6 {[%clk 0:09:33.9]} 14. e5 {[%clk
0:07:03.9]} 14... Ne4 {[%clk 0:09:33.1]} 15. Rc2 {[%clk 0:06:35.7]} 15... dxe5
{[%clk 0:09:31.4]} 16. Nxe5 {[%clk 0:06:29.7]} 16... Be6 {[%clk 0:09:19]} 17.
Re2 {[%clk 0:06:12.2]} 17... Rd8 {[%clk 0:09:07.7]} 18. Bxe4 {[%clk 0:05:15.8]}
18... fxe4 {[%clk 0:08:54.8]} 19. Qxe4 {[%clk 0:05:15.8]} 19... Bf5 {[%clk
0:08:30.4]} 20. Qe3 {[%clk 0:05:15.2]} 20... Rf6 {[%clk 0:08:18.1]} 21. Rfe1
{[%clk 0:04:47.2]} 21... g5 {[%clk 0:07:36.4]} 22. f3 {[%clk 0:04:31.8]} 22...
Re6 {[%clk 0:07:07.6]} 23. Kg2 {[%clk 0:03:59.3]} 23... Bxe5 {[%clk 0:06:57.4]}
24. dxe5 {[%clk 0:03:58.9]} 24... Rd3 {[%clk 0:06:26.7]} 25. Qxa7 {[%clk
0:03:47.7]} 25... Qh5 {[%clk 0:06:25.9]} 26. g4 {[%clk 0:03:48.6]} 26... Bxg4
{[%clk 0:06:10.5]} 27. fxg4 {[%clk 0:03:48.8]} 27... Qxg4+ {[%clk 0:06:11]} 28.
Kh1 {[%clk 0:03:50.1]} 28... Qf3+ {[%clk 0:06:02.4]} 29. Kg1 {[%clk 0:03:50.8]}
29... Qg4+ {[%clk 0:05:54.1]} 30. Rg2 {[%clk 0:03:50.5]} 30... Qf5 {[%clk
0:05:30.2]} 31. Qf2 {[%clk 0:03:44.6]} 31... Rf3 {[%clk 0:05:30.7]} 32. Qe2
{[%clk 0:03:37.4]} 32... g4 {[%clk 0:04:49.5]} 33. Rg3 {[%clk 0:01:29.2]} 33...
Kh7 {[%clk 0:04:41.5]} 34. Qe4 {[%clk 0:01:11]} 34... Rf1+ {[%clk 0:04:41.7]}
35. Kg2 {[%clk 0:01:12.2]} 35... Rf2+ {[%clk 0:04:43]} 36. Kh1 {[%clk
0:01:12.9]} 36... Rxe5 {[%clk 0:04:23.7]} 37. Qxf5+ {[%clk 0:01:05.7]} 37...
Rexf5 {[%clk 0:04:24.7]} 38. Rxe7+ {[%clk 0:00:58.1]} 38... Kg6 {[%clk
0:04:25.4]} 39. Rxg4+ {[%clk 0:00:57]} 39... Kh5 {[%clk 0:04:26.7]} 40. Rg2
{[%clk 0:00:44.4]} 40... Rf1+ {[%clk 0:04:27.7]} 41. Rg1 {[%clk 0:00:45.7]}
41... R1f2 {[%clk 0:04:28.8]} 42. Re3 {[%clk 0:00:44.7]} 42... Rg5 {[%clk
0:04:21]} 43. Rh3+ {[%clk 0:00:34.9]} 43... Kg6 {[%clk 0:04:21.9]} 44. Rxh6+
{[%clk 0:00:30.5]} 44... Kxh6 {[%clk 0:04:22.5]} 45. Bc1 {[%clk 0:00:31.4]}
45... Rxa2 {[%clk 0:04:22.2]} 46. Bxg5+ {[%clk 0:00:26.1]} 46... Kh5 {[%clk
0:04:23.4]} 47. Rg3 {[%clk 0:00:27.3]} 47... Ra5 {[%clk 0:04:17.3]} 48. h4
{[%clk 0:00:27.8]} 48... b5 {[%clk 0:04:18.1]} 49. cxb5 {[%clk 0:00:27.7]} 49...
Rxb5 {[%clk 0:04:19.4]} 50. Kg2 {[%clk 0:00:25.9]} 50... c5 {[%clk 0:04:20.5]}
51. Rc3 {[%clk 0:00:26.9]} 51... Rb4 {[%clk 0:04:21.6]} 52. Kf3 {[%clk 0:00:26]}
52... Rd4 {[%clk 0:04:18.5]} 53. Rxc5 {[%clk 0:00:18.3]} 53... Rd3+ {[%clk
0:04:19.4]} 54. Be3+ {[%clk 0:00:17.7]} 54... Kxh4 {[%clk 0:04:20.8]} 55. b4
{[%clk 0:00:18.2]} 55... Rb3 {[%clk 0:04:21.9]} 56. Rc6 {[%clk 0:00:14.5]} 1-0

[Event "GrandPrix_29.05"]
[Site "Chess.com"]
[Date "2020.05.29"]
[Round "3"]
[White "Meri-Arabidze"]
[Black "khekhm"]
[Result "0-1"]
[WhiteElo "2065"]
[BlackElo "2433"]
[TimeControl "600+2"]
[EndTime "10:24:20 PDT"]
[Termination "khekhm won on time"]

1. d4 {[%clk 0:10:01.9]} 1... Nf6 {[%clk 0:09:49.1]} 2. c4 {[%clk 0:10:01.9]}
2... g6 {[%clk 0:09:49.9]} 3. g3 {[%clk 0:10:02.2]} 3... Bg7 {[%clk 0:09:49.1]}
4. Bg2 {[%clk 0:10:02.8]} 4... d5 {[%clk 0:09:50]} 5. cxd5 {[%clk 0:10:02.2]}
5... Nxd5 {[%clk 0:09:51.9]} 6. Nf3 {[%clk 0:09:52.6]} 6... O-O {[%clk
0:09:52.3]} 7. O-O {[%clk 0:09:53.6]} 7... Nb6 {[%clk 0:09:48.8]} 8. Nc3 {[%clk
0:09:53.8]} 8... Nc6 {[%clk 0:09:49.3]} 9. d5 {[%clk 0:09:53.7]} 9... Na5 {[%clk
0:09:49.7]} 10. Qc2 {[%clk 0:09:54.7]} 10... Bf5 {[%clk 0:09:48.8]} 11. e4
{[%clk 0:09:52.2]} 11... Bg4 {[%clk 0:09:49.9]} 12. Bf4 {[%clk 0:09:20.9]} 12...
Rc8 {[%clk 0:09:44.1]} 13. Rfd1 {[%clk 0:08:24.1]} 13... Qd7 {[%clk 0:09:37.7]}
14. a4 {[%clk 0:07:58.3]} 14... c5 {[%clk 0:09:26.8]} 15. Nb5 {[%clk 0:06:06.4]}
15... a6 {[%clk 0:09:11.2]} 16. Na7 {[%clk 0:05:22.1]} 16... Ra8 {[%clk
0:08:55.3]} 17. Qxc5 {[%clk 0:05:21.1]} 17... Nbc4 {[%clk 0:08:10.4]} 18. Rac1
{[%clk 0:03:19.6]} 18... b6 {[%clk 0:07:59.9]} 19. Qb4 {[%clk 0:03:18.5]} 19...
Rxa7 {[%clk 0:07:47]} 20. Rxc4 {[%clk 0:02:45.7]} 20... Nxc4 {[%clk 0:07:48.9]}
21. Qxc4 {[%clk 0:02:47.2]} 21... Rc8 {[%clk 0:07:48.8]} 22. Qb3 {[%clk
0:02:39.8]} 22... b5 {[%clk 0:07:44.2]} 23. a5 {[%clk 0:02:33.9]} 23... Qd8
{[%clk 0:07:23.9]} 24. Be3 {[%clk 0:02:26.8]} 24... Raa8 {[%clk 0:07:13.5]} 25.
Bb6 {[%clk 0:02:27.6]} 25... Qd7 {[%clk 0:07:09.6]} 26. Re1 {[%clk 0:02:27.2]}
26... e5 {[%clk 0:06:51.2]} 27. Nd2 {[%clk 0:02:15.9]} 27... Bf8 {[%clk
0:06:41.8]} 28. Qe3 {[%clk 0:01:29.6]} 28... Rc2 {[%clk 0:06:36.2]} 29. Nb3
{[%clk 0:01:16.1]} 29... Rac8 {[%clk 0:06:32.3]} 30. Rb1 {[%clk 0:01:08]} 30...
h5 {[%clk 0:05:15.7]} 31. Nc1 {[%clk 0:01:03.2]} 31... Kh7 {[%clk 0:05:09.2]}
32. Nd3 {[%clk 0:00:45.7]} 32... f6 {[%clk 0:05:09.9]} 33. Bf1 {[%clk
0:00:27.9]} 33... Bh6 {[%clk 0:05:03.9]} 34. f4 {[%clk 0:00:23.4]} 34... Bh3
{[%clk 0:04:47.6]} 35. Qf3 {[%clk 0:00:14.6]} 35... exf4 {[%clk 0:04:26.7]} 36.
Nxf4 {[%clk 0:00:09.4]} 36... Qg4 {[%clk 0:03:54.7]} 37. Qxg4 {[%clk 0:00:09.1]}
37... Bxg4 {[%clk 0:03:56.6]} 38. b4 {[%clk 0:00:07.2]} 38... Bf8 {[%clk
0:03:27.5]} 39. Rd1 {[%clk 0:00:07.3]} 39... Bxd1 {[%clk 0:03:18.8]} 0-1

[Event "GrandPrix_29.05"]
[Site "Chess.com"]
[Date "2020.05.29"]
[Round "3"]
[White "MilanovicDan"]
[Black "rim1618"]
[Result "0-1"]
[WhiteElo "2318"]
[BlackElo "2416"]
[TimeControl "600+2"]
[EndTime "10:24:32 PDT"]
[Termination "rim1618 won by resignation"]

1. d4 {[%clk 0:10:01.9]} 1... Nf6 {[%clk 0:09:53.8]} 2. c4 {[%clk 0:10:02.6]}
2... e6 {[%clk 0:09:54]} 3. Nc3 {[%clk 0:10:02.8]} 3... Bb4 {[%clk 0:09:51.4]}
4. e3 {[%clk 0:10:03.7]} 4... O-O {[%clk 0:09:50.8]} 5. Bd3 {[%clk 0:10:03.6]}
5... d5 {[%clk 0:09:51.8]} 6. cxd5 {[%clk 0:10:04.6]} 6... exd5 {[%clk
0:09:52.6]} 7. Ne2 {[%clk 0:10:05.7]} 7... b6 {[%clk 0:09:02.6]} 8. O-O {[%clk
0:09:57.6]} 8... Bb7 {[%clk 0:09:03.2]} 9. a3 {[%clk 0:09:47.3]} 9... Bd6 {[%clk
0:09:01.9]} 10. b4 {[%clk 0:09:46.8]} 10... a6 {[%clk 0:09:01.6]} 11. Rb1 {[%clk
0:09:43.5]} 11... Nbd7 {[%clk 0:08:45.4]} 12. a4 {[%clk 0:09:39.2]} 12... c6
{[%clk 0:08:44.4]} 13. a5 {[%clk 0:09:06.5]} 13... b5 {[%clk 0:08:36.9]} 14. f3
{[%clk 0:09:04.6]} 14... Qe7 {[%clk 0:08:23.5]} 15. Qb3 {[%clk 0:08:55.9]} 15...
Rad8 {[%clk 0:07:53.9]} 16. Bd2 {[%clk 0:08:34.5]} 16... Ne8 {[%clk 0:07:03]}
17. Rbe1 {[%clk 0:08:06.4]} 17... Nc7 {[%clk 0:06:47.3]} 18. Na2 {[%clk
0:07:58.5]} 18... Kh8 {[%clk 0:06:01.6]} 19. Bb1 {[%clk 0:07:07.7]} 19... f5
{[%clk 0:05:56.5]} 20. Nac1 {[%clk 0:07:06.5]} 20... Ne6 {[%clk 0:05:36.3]} 21.
Nd3 {[%clk 0:07:05]} 21... Nf6 {[%clk 0:05:34.3]} 22. Qb2 {[%clk 0:04:58.6]}
22... Bb8 {[%clk 0:05:30.6]} 23. Bc3 {[%clk 0:04:29.9]} 23... Ne8 {[%clk
0:05:28.3]} 24. Ne5 {[%clk 0:04:26.7]} 24... Nd6 {[%clk 0:05:27.8]} 25. Nc1
{[%clk 0:04:07.8]} 25... Nc4 {[%clk 0:05:24.1]} 26. Qf2 {[%clk 0:04:07.3]} 26...
Nxe5 {[%clk 0:05:16.6]} 27. dxe5 {[%clk 0:04:07.1]} 27... Ba7 {[%clk 0:05:07.3]}
28. Kh1 {[%clk 0:03:29.5]} 28... d4 {[%clk 0:03:56.5]} 29. exd4 {[%clk
0:03:25.4]} 29... Bxd4 {[%clk 0:03:54.4]} 30. Qb2 {[%clk 0:03:25.8]} 30... Bxc3
{[%clk 0:03:33.3]} 31. Qxc3 {[%clk 0:03:26]} 31... Rd4 {[%clk 0:03:34.9]} 32.
Nd3 {[%clk 0:03:27]} 32... Rfd8 {[%clk 0:03:32.3]} 33. Rc1 {[%clk 0:03:07.9]}
33... Qg5 {[%clk 0:02:39.8]} 34. Qb3 {[%clk 0:00:50.5]} 34... Rxd3 {[%clk
0:02:01.5]} 35. Qxe6 {[%clk 0:00:50.7]} 35... Qxc1 {[%clk 0:01:59.5]} 0-1

[Event "GrandPrix_29.05"]
[Site "Chess.com"]
[Date "2020.05.29"]
[Round "3"]
[White "francyIM"]
[Black "kpio91"]
[Result "0-1"]
[WhiteElo "2471"]
[BlackElo "2800"]
[TimeControl "600+2"]
[EndTime "10:24:34 PDT"]
[Termination "kpio91 won by resignation"]

1. Nf3 {[%clk 0:10:01.9]} 1... Nf6 {[%clk 0:09:54]} 2. c4 {[%clk 0:10:01.6]}
2... g6 {[%clk 0:09:54.2]} 3. g3 {[%clk 0:10:01.6]} 3... Bg7 {[%clk 0:09:55.4]}
4. Bg2 {[%clk 0:10:01.9]} 4... O-O {[%clk 0:09:56.6]} 5. O-O {[%clk 0:10:02.5]}
5... d6 {[%clk 0:09:57.6]} 6. d4 {[%clk 0:10:03.2]} 6... Ne4 {[%clk 0:09:58.5]}
7. Qc2 {[%clk 0:09:37]} 7... f5 {[%clk 0:09:56.5]} 8. Rd1 {[%clk 0:09:37]} 8...
Nc6 {[%clk 0:09:30.1]} 9. c5 {[%clk 0:09:04.9]} 9... dxc5 {[%clk 0:09:03.4]} 10.
dxc5 {[%clk 0:09:00.9]} 10... Qe8 {[%clk 0:09:04.2]} 11. Nbd2 {[%clk 0:08:20.5]}
11... Nf6 {[%clk 0:08:04.2]} 12. e4 {[%clk 0:07:15.6]} 12... e5 {[%clk
0:08:01.1]} 13. Re1 {[%clk 0:07:07.9]} 13... f4 {[%clk 0:07:57.5]} 14. b4 {[%clk
0:06:55.4]} 14... a6 {[%clk 0:07:29.1]} 15. Rb1 {[%clk 0:06:54.8]} 15... fxg3
{[%clk 0:06:38.6]} 16. hxg3 {[%clk 0:06:51.3]} 16... Ng4 {[%clk 0:06:39.1]} 17.
Nc4 {[%clk 0:06:17.7]} 17... Be6 {[%clk 0:06:06]} 18. Ne3 {[%clk 0:05:18.1]}
18... h6 {[%clk 0:05:41.2]} 19. a4 {[%clk 0:04:25.7]} 19... g5 {[%clk
0:04:41.1]} 20. Nf5 {[%clk 0:03:52.3]} 20... Qh5 {[%clk 0:04:11.3]} 21. Be3
{[%clk 0:00:54.7]} 21... Rae8 {[%clk 0:03:18.2]} 22. b5 {[%clk 0:00:50.9]} 22...
axb5 {[%clk 0:03:16.9]} 23. axb5 {[%clk 0:00:51.5]} 23... Ne7 {[%clk 0:03:17.9]}
24. Nxg7 {[%clk 0:00:41]} 24... Kxg7 {[%clk 0:03:17.1]} 25. Qc3 {[%clk
0:00:38.4]} 25... Ng6 {[%clk 0:02:45.9]} 26. b6 {[%clk 0:00:35.7]} 26... c6
{[%clk 0:02:43.2]} 27. Rbd1 {[%clk 0:00:35.9]} 27... Rf6 {[%clk 0:02:36.5]} 28.
Rd6 {[%clk 0:00:36.3]} 28... Ref8 {[%clk 0:02:32.2]} 29. Qd3 {[%clk 0:00:06.2]}
29... Rxf3 {[%clk 0:02:22.9]} 30. Bxf3 {[%clk 0:00:06.5]} 30... Qh2+ {[%clk
0:02:23.6]} 31. Kf1 {[%clk 0:00:06.7]} 31... Rxf3 {[%clk 0:02:25.5]} 32. Rxe6
{[%clk 0:00:08]} 32... Rxf2+ {[%clk 0:02:25.2]} 0-1

[Event "GrandPrix_29.05"]
[Site "Chess.com"]
[Date "2020.05.29"]
[Round "3"]
[White "Sunnika"]
[Black "Robert_Chessmood"]
[Result "0-1"]
[WhiteElo "2127"]
[BlackElo "2153"]
[TimeControl "600+2"]
[EndTime "10:24:35 PDT"]
[Termination "Robert_Chessmood won by resignation"]

1. d4 {[%clk 0:10:01.9]} 1... Nf6 {[%clk 0:09:57]} 2. Nf3 {[%clk 0:10:01.1]}
2... g6 {[%clk 0:09:57.3]} 3. g3 {[%clk 0:09:59.6]} 3... Bg7 {[%clk 0:09:58.4]}
4. Bg2 {[%clk 0:10:01.2]} 4... O-O {[%clk 0:09:59.9]} 5. O-O {[%clk 0:10:02.6]}
5... d6 {[%clk 0:09:58.4]} 6. c4 {[%clk 0:10:03]} 6... Bf5 {[%clk 0:09:59.4]} 7.
Nc3 {[%clk 0:10:01.5]} 7... Ne4 {[%clk 0:10:00.6]} 8. Bd2 {[%clk 0:09:53.2]}
8... Nxc3 {[%clk 0:09:35]} 9. Bxc3 {[%clk 0:09:53.7]} 9... Be4 {[%clk
0:09:36.9]} 10. Qd2 {[%clk 0:09:47.4]} 10... d5 {[%clk 0:09:26.2]} 11. b3 {[%clk
0:09:28.4]} 11... Nc6 {[%clk 0:09:25.4]} 12. Rfd1 {[%clk 0:09:20.6]} 12... a5
{[%clk 0:09:14.6]} 13. Nh4 {[%clk 0:06:51.5]} 13... Bxg2 {[%clk 0:09:10.1]} 14.
Nxg2 {[%clk 0:06:29.7]} 14... e6 {[%clk 0:08:54.7]} 15. Nf4 {[%clk 0:05:09.2]}
15... a4 {[%clk 0:08:42.8]} 16. e3 {[%clk 0:04:58.8]} 16... Re8 {[%clk 0:08:08]}
17. Kg2 {[%clk 0:04:56.2]} 17... Ne7 {[%clk 0:07:55.8]} 18. Qc2 {[%clk
0:04:36.3]} 18... Qd7 {[%clk 0:07:47]} 19. Bb4 {[%clk 0:04:19.8]} 19... Nc6
{[%clk 0:06:54.8]} 20. Bc3 {[%clk 0:04:06.4]} 20... Ra6 {[%clk 0:06:20.5]} 21.
b4 {[%clk 0:03:25.2]} 21... Raa8 {[%clk 0:05:49.1]} 22. cxd5 {[%clk 0:02:49.2]}
22... exd5 {[%clk 0:05:49.6]} 23. b5 {[%clk 0:02:50.7]} 23... Na7 {[%clk
0:05:43.1]} 24. Qxa4 {[%clk 0:02:05.9]} 24... Nxb5 {[%clk 0:05:41.9]} 25. Qc2
{[%clk 0:02:06.5]} 25... c5 {[%clk 0:05:07.1]} 26. a4 {[%clk 0:01:25.5]} 26...
Nxc3 {[%clk 0:05:05]} 27. Qxc3 {[%clk 0:01:26.6]} 27... cxd4 {[%clk 0:05:06.6]}
28. exd4 {[%clk 0:01:23.7]} 28... Rxa4 {[%clk 0:05:06.6]} 29. Rxa4 {[%clk
0:00:52]} 29... Qxa4 {[%clk 0:05:08.5]} 30. Qf3 {[%clk 0:00:29.2]} 30... Rd8
{[%clk 0:04:35.8]} 31. Rb1 {[%clk 0:00:27.5]} 31... Qc6 {[%clk 0:04:29.5]} 32.
Rb4 {[%clk 0:00:22.5]} 32... Bh6 {[%clk 0:04:17.9]} 33. Nd3 {[%clk 0:00:19.3]}
33... Bg7 {[%clk 0:04:11.3]} 34. h4 {[%clk 0:00:09.6]} 34... h5 {[%clk
0:04:06.7]} 35. Ne5 {[%clk 0:00:07.4]} 35... Bxe5 {[%clk 0:03:49.1]} 36. dxe5
{[%clk 0:00:09.3]} 36... Rd7 {[%clk 0:03:49.7]} 37. Rd4 {[%clk 0:00:07.4]} 37...
Qe6 {[%clk 0:03:45.3]} 38. Qf4 {[%clk 0:00:06.6]} 38... Kg7 {[%clk 0:03:41.4]}
39. Qe3 {[%clk 0:00:06.4]} 39... Re7 {[%clk 0:03:37.6]} 40. f4 {[%clk
0:00:07.3]} 40... Rc7 {[%clk 0:03:37.6]} 41. Qd3 {[%clk 0:00:07.8]} 41... Rc5
{[%clk 0:03:35.5]} 42. Qd2 {[%clk 0:00:07.3]} 42... Qc6 {[%clk 0:03:29.7]} 43.
Kh3 {[%clk 0:00:07.6]} 43... Qc8+ {[%clk 0:03:28.3]} 44. f5 {[%clk 0:00:06.8]}
44... Qxf5+ {[%clk 0:03:28.6]} 45. g4 {[%clk 0:00:06.9]} 45... hxg4+ {[%clk
0:03:24]} 46. Rxg4 {[%clk 0:00:08.8]} 46... Rc4 {[%clk 0:03:24.9]} 0-1

[Event "GrandPrix_29.05"]
[Site "Chess.com"]
[Date "2020.05.29"]
[Round "3"]
[White "Paulz64"]
[Black "Carpe7Diem"]
[Result "1-0"]
[WhiteElo "2146"]
[BlackElo "2096"]
[TimeControl "600+2"]
[EndTime "10:24:40 PDT"]
[Termination "Paulz64 won on time"]

1. d4 {[%clk 0:10:01.9]} 1... d5 {[%clk 0:09:59.6]} 2. c4 {[%clk 0:10:02.3]}
2... c6 {[%clk 0:09:59]} 3. Nf3 {[%clk 0:10:02.9]} 3... Nf6 {[%clk 0:09:59]} 4.
Qc2 {[%clk 0:10:03.8]} 4... g6 {[%clk 0:09:59.3]} 5. Bf4 {[%clk 0:10:04.1]} 5...
Bf5 {[%clk 0:10:00.2]} 6. Qb3 {[%clk 0:10:04.8]} 6... Qb6 {[%clk 0:10:01.5]} 7.
e3 {[%clk 0:10:05.6]} 7... Bg7 {[%clk 0:09:49.4]} 8. Nc3 {[%clk 0:10:04.2]} 8...
Nbd7 {[%clk 0:09:40.3]} 9. Be2 {[%clk 0:10:05.1]} 9... O-O {[%clk 0:09:30.1]}
10. O-O {[%clk 0:10:03.1]} 10... Ne4 {[%clk 0:08:45]} 11. cxd5 {[%clk
0:09:42.9]} 11... Qxb3 {[%clk 0:08:14.3]} 12. axb3 {[%clk 0:09:40.7]} 12... Nxc3
{[%clk 0:08:09.7]} 13. bxc3 {[%clk 0:09:41.4]} 13... cxd5 {[%clk 0:08:11.6]} 14.
c4 {[%clk 0:09:42.3]} 14... Nf6 {[%clk 0:07:14.7]} 15. c5 {[%clk 0:09:26]} 15...
Ne4 {[%clk 0:07:09.2]} 16. Rfc1 {[%clk 0:09:17.5]} 16... Rfc8 {[%clk 0:07:03.5]}
17. b4 {[%clk 0:09:12.9]} 17... a6 {[%clk 0:07:00.1]} 18. h3 {[%clk 0:08:58.5]}
18... h5 {[%clk 0:05:32.9]} 19. Ra3 {[%clk 0:08:43.4]} 19... Bf6 {[%clk
0:04:56.3]} 20. Rca1 {[%clk 0:08:25.3]} 20... g5 {[%clk 0:04:54]} 21. Bh2 {[%clk
0:08:11.7]} 21... g4 {[%clk 0:04:52.6]} 22. hxg4 {[%clk 0:08:03.8]} 22... hxg4
{[%clk 0:04:50]} 23. Ne1 {[%clk 0:07:43.2]} 23... Bh4 {[%clk 0:04:00.1]} 24. Nd3
{[%clk 0:06:57.5]} 24... g3 {[%clk 0:02:46.1]} 25. fxg3 {[%clk 0:06:54.9]} 25...
Bxg3 {[%clk 0:02:37.7]} 26. Nf4 {[%clk 0:06:12.8]} 26... Bf2+ {[%clk 0:02:26]}
27. Kf1 {[%clk 0:06:10.7]} 27... Bg3 {[%clk 0:01:56.4]} 28. Bxg3 {[%clk
0:06:03.1]} 28... Nxg3+ {[%clk 0:01:58.3]} 29. Ke1 {[%clk 0:06:00.4]} 29... Be4
{[%clk 0:01:42.3]} 30. b5 {[%clk 0:05:53.3]} 30... f6 {[%clk 0:01:30.5]} 31. Kf2
{[%clk 0:05:08.7]} 31... Nf5 {[%clk 0:01:11.5]} 32. g4 {[%clk 0:04:47.2]} 32...
Ng7 {[%clk 0:00:54.8]} 33. bxa6 {[%clk 0:04:47.8]} 33... bxa6 {[%clk 0:00:55]}
34. Rxa6 {[%clk 0:04:40.4]} 34... Rxa6 {[%clk 0:00:55.9]} 35. Rxa6 {[%clk
0:04:40.5]} 35... e5 {[%clk 0:00:53.9]} 36. Nh5 {[%clk 0:04:19]} 36... Nxh5
{[%clk 0:00:34.2]} 37. gxh5 {[%clk 0:04:17.1]} 37... Kg7 {[%clk 0:00:30.1]} 38.
c6 {[%clk 0:03:52.3]} 38... Bf5 {[%clk 0:00:12.5]} 39. Ra7+ {[%clk 0:03:44.7]}
39... Kh6 {[%clk 0:00:13.5]} 40. c7 {[%clk 0:03:45.8]} 40... Kg5 {[%clk
0:00:12.4]} 41. Ba6 {[%clk 0:03:44.2]} 41... Rh8 {[%clk 0:00:11.7]} 42. Be2
{[%clk 0:03:37.3]} 42... exd4 {[%clk 0:00:10.7]} 43. exd4 {[%clk 0:03:37.8]}
43... Bg4 {[%clk 0:00:12.1]} 44. Ra5 {[%clk 0:03:27.4]} 44... Bxe2 {[%clk
0:00:05.5]} 45. Rxd5+ {[%clk 0:03:27.1]} 45... Kf4 {[%clk 0:00:04.5]} 46. Rd8
{[%clk 0:03:27]} 1-0